[Event "*** Titled Tuesday Blitz"]
[Site "Chess.com"]
[Date "2021.02.16"]
[Round "5"]
[White "kobemagic"]
[Black "Skat2704"]
[Result "1-0"]
[WhiteElo "2398"]
[BlackElo "2532"]
[TimeControl "180+1"]
[EndTime "10:57:49 PST"]
[Termination "kobemagic won by resignation"]

1. c4 {[%clk 0:03:00.9]} 1... c5 {[%clk 0:03:00]} 2. g3 {[%clk 0:03:00.6]} 2...
g6 {[%clk 0:02:59.5]} 3. Bg2 {[%clk 0:03:00.6]} 3... Bg7 {[%clk 0:02:59.5]} 4.
Nc3 {[%clk 0:03:01]} 4... e6 {[%clk 0:02:58.2]} 5. a3 {[%clk 0:02:59.9]} 5...
Ne7 {[%clk 0:02:58.3]} 6. b4 {[%clk 0:02:59.1]} 6... cxb4 {[%clk 0:02:57]} 7.
axb4 {[%clk 0:03:00]} 7... O-O {[%clk 0:02:57]} 8. Nf3 {[%clk 0:02:58.4]} 8...
d5 {[%clk 0:02:55.2]} 9. cxd5 {[%clk 0:02:56.2]} 9... Nxd5 {[%clk 0:02:55.1]}
10. Qb3 {[%clk 0:02:49.6]} 10... Nc6 {[%clk 0:02:48.4]} 11. O-O {[%clk
0:02:39.7]} 11... Ndxb4 {[%clk 0:02:21.4]} 12. Ba3 {[%clk 0:02:35.9]} 12... a5
{[%clk 0:02:21.2]} 13. Rab1 {[%clk 0:02:15.3]} 13... Re8 {[%clk 0:02:11.6]} 14.
d3 {[%clk 0:02:02.6]} 14... Bd7 {[%clk 0:01:54.6]} 15. Rfc1 {[%clk 0:01:58.3]}
15... Qf6 {[%clk 0:01:40.6]} 16. Ne4 {[%clk 0:01:51.8]} 16... Qe7 {[%clk
0:01:35.8]} 17. Nc5 {[%clk 0:01:51]} 17... b6 {[%clk 0:01:28.3]} 18. Nxd7 {[%clk
0:01:40.8]} 18... Qxd7 {[%clk 0:01:28.1]} 19. Nd2 {[%clk 0:01:25.5]} 19... Rab8
{[%clk 0:01:09.5]} 20. Nc4 {[%clk 0:01:15.3]} 20... e5 {[%clk 0:00:55.9]} 21.
Bxc6 {[%clk 0:01:04.6]} 21... Nxc6 {[%clk 0:00:50.6]} 22. Nd6 {[%clk 0:01:04.9]}
22... Re6 {[%clk 0:00:45.6]} 23. Ne4 {[%clk 0:00:50.6]} 23... h6 {[%clk
0:00:37.6]} 24. Qa4 {[%clk 0:00:30.8]} 24... Kh7 {[%clk 0:00:33.2]} 25. Bd6
{[%clk 0:00:21.2]} 25... Rc8 {[%clk 0:00:30.5]} 26. Rxb6 {[%clk 0:00:20.2]}
26... f5 {[%clk 0:00:18.3]} 27. Rcxc6 {[%clk 0:00:17.5]} 27... fxe4 {[%clk
0:00:17.7]} 28. Qc4 {[%clk 0:00:12.9]} 28... Rxd6 {[%clk 0:00:14.5]} 29. Rxc8
{[%clk 0:00:09.6]} 1-0

[Event "*** Titled Tuesday Blitz"]
[Site "Chess.com"]
[Date "2021.02.16"]
[Round "5"]
[White "Aya5ian"]
[Black "FMOlexandrProhorov"]
[Result "0-1"]
[WhiteElo "2309"]
[BlackElo "2111"]
[TimeControl "180+1"]
[EndTime "10:57:50 PST"]
[Termination "FMOlexandrProhorov won by checkmate"]

1. Nf3 {[%clk 0:03:00.9]} 1... c5 {[%clk 0:02:59.9]} 2. c4 {[%clk 0:03:00.2]}
2... b6 {[%clk 0:02:58.7]} 3. e3 {[%clk 0:02:59.6]} 3... Bb7 {[%clk 0:02:56.6]}
4. d4 {[%clk 0:02:59.6]} 4... cxd4 {[%clk 0:02:53.8]} 5. exd4 {[%clk 0:03:00.5]}
5... Nf6 {[%clk 0:02:54.3]} 6. Be2 {[%clk 0:02:57.6]} 6... d5 {[%clk 0:02:53.7]}
7. O-O {[%clk 0:02:50.1]} 7... e6 {[%clk 0:02:53.9]} 8. Bg5 {[%clk 0:02:47.3]}
8... Be7 {[%clk 0:02:53.4]} 9. Nc3 {[%clk 0:02:47]} 9... O-O {[%clk 0:02:52.9]}
10. Ne5 {[%clk 0:02:46.8]} 10... Nc6 {[%clk 0:02:52]} 11. Bf3 {[%clk 0:02:40.1]}
11... Rc8 {[%clk 0:02:50.4]} 12. Bxf6 {[%clk 0:02:31.7]} 12... gxf6 {[%clk
0:02:44.9]} 13. cxd5 {[%clk 0:02:10.5]} 13... fxe5 {[%clk 0:02:38]} 14. dxc6
{[%clk 0:02:09.6]} 14... Bxc6 {[%clk 0:02:38.3]} 15. Bxc6 {[%clk 0:02:01.1]}
15... Rxc6 {[%clk 0:02:39.2]} 16. dxe5 {[%clk 0:02:00.8]} 16... Qc7 {[%clk
0:02:39.4]} 17. f4 {[%clk 0:01:51.4]} 17... Rd8 {[%clk 0:02:30.9]} 18. Qg4+
{[%clk 0:01:50.4]} 18... Kh8 {[%clk 0:02:27.6]} 19. Ne4 {[%clk 0:01:50]} 19...
Rc4 {[%clk 0:02:21.5]} 20. Nf6 {[%clk 0:01:20.6]} 20... Bxf6 {[%clk 0:02:12.9]}
21. exf6 {[%clk 0:01:21.5]} 21... Rg8 {[%clk 0:02:13]} 22. Qh4 {[%clk
0:01:17.3]} 22... Qc6 {[%clk 0:02:09.9]} 23. g3 {[%clk 0:01:02.3]} 23... Rc2
{[%clk 0:01:59.8]} 24. Rf2 {[%clk 0:00:51.8]} 24... Qc5 {[%clk 0:01:55.1]} 25.
Rf1 {[%clk 0:00:50.6]} 25... Rxb2 {[%clk 0:01:52.5]} 26. Kg2 {[%clk 0:00:48.5]}
26... Rxf2+ {[%clk 0:01:51.4]} 27. Rxf2 {[%clk 0:00:49.4]} 27... Qd5+ {[%clk
0:01:52]} 28. Kh3 {[%clk 0:00:46.5]} 28... Qf5+ {[%clk 0:01:46.4]} 29. g4 {[%clk
0:00:46.6]} 29... Qd3+ {[%clk 0:01:41.2]} 30. Kg2 {[%clk 0:00:42.9]} 30... Qe4+
{[%clk 0:01:40.9]} 31. Kh3 {[%clk 0:00:42.8]} 31... Qe1 {[%clk 0:01:34.3]} 32.
Rg2 {[%clk 0:00:31.2]} 32... Qe3+ {[%clk 0:01:31.9]} 33. Rg3 {[%clk 0:00:31.3]}
33... Qxf4 {[%clk 0:01:32.1]} 34. Rc3 {[%clk 0:00:23.7]} 34... e5 {[%clk
0:01:30.3]} 35. g5 {[%clk 0:00:15.4]} 35... Qf1+ {[%clk 0:01:22.7]} 36. Kg4
{[%clk 0:00:12.7]} 36... Qe2+ {[%clk 0:01:16.6]} 37. Kf5 {[%clk 0:00:08.7]}
37... Qf1+ {[%clk 0:01:07.5]} 38. Kxe5 {[%clk 0:00:07.1]} 38... Re8+ {[%clk
0:01:06.2]} 39. Kd4 {[%clk 0:00:03.3]} 39... Qd1+ {[%clk 0:01:03.5]} 40. Kc4
{[%clk 0:00:02.9]} 40... Rc8+ {[%clk 0:01:01.5]} 41. Kb4 {[%clk 0:00:03.3]}
41... a5+ {[%clk 0:01:01.9]} 42. Kb5 {[%clk 0:00:02]} 42... Rxc3 {[%clk
0:01:00.9]} 43. Qh5 {[%clk 0:00:02.1]} 43... Qd5+ {[%clk 0:01:00.6]} 44. Kxb6
{[%clk 0:00:01.7]} 44... Rc6+ {[%clk 0:00:55.7]} 45. Kb7 {[%clk 0:00:01.6]}
45... Qd7+ {[%clk 0:00:55.8]} 46. Kb8 {[%clk 0:00:01.8]} 46... Rc8# {[%clk
0:00:56.6]} 0-1

[Event "*** Titled Tuesday Blitz"]
[Site "Chess.com"]
[Date "2021.02.16"]
[Round "5"]
[White "Kanthecarowin"]
[Black "night_player"]
[Result "0-1"]
[WhiteElo "2322"]
[BlackElo "2170"]
[TimeControl "180+1"]
[EndTime "10:57:50 PST"]
[Termination "night_player won by resignation"]

1. d4 {[%clk 0:03:00.9]} 1... f5 {[%clk 0:02:59.2]} 2. g3 {[%clk 0:03:00.1]}
2... d6 {[%clk 0:02:59.4]} 3. Bg2 {[%clk 0:03:00.4]} 3... Nf6 {[%clk 0:02:59.7]}
4. Nh3 {[%clk 0:03:00.8]} 4... g6 {[%clk 0:03:00.3]} 5. O-O {[%clk 0:03:01.1]}
5... Bg7 {[%clk 0:03:00.8]} 6. c4 {[%clk 0:02:59.8]} 6... O-O {[%clk 0:03:01]}
7. Qb3 {[%clk 0:02:56.4]} 7... c6 {[%clk 0:02:56.8]} 8. Nc3 {[%clk 0:02:55]}
8... e5 {[%clk 0:02:55.5]} 9. c5+ {[%clk 0:02:46.6]} 9... Kh8 {[%clk 0:02:52.9]}
10. dxe5 {[%clk 0:02:38.4]} 10... dxe5 {[%clk 0:02:52.8]} 11. Bg5 {[%clk
0:02:38]} 11... Qe8 {[%clk 0:02:49.9]} 12. Rad1 {[%clk 0:02:36.4]} 12... Nbd7
{[%clk 0:02:47.1]} 13. Qa3 {[%clk 0:02:33]} 13... e4 {[%clk 0:02:36.9]} 14. Rd6
{[%clk 0:02:18.6]} 14... Qe5 {[%clk 0:02:08.9]} 15. Na4 {[%clk 0:01:54.1]} 15...
Nd5 {[%clk 0:02:01.8]} 16. b4 {[%clk 0:01:46.1]} 16... N7f6 {[%clk 0:01:35.3]}
17. Rd1 {[%clk 0:01:35.1]} 17... Ng4 {[%clk 0:01:33]} 18. Bf4 {[%clk 0:01:26.6]}
18... Nxf4 {[%clk 0:01:31.5]} 19. Nxf4 {[%clk 0:01:27.5]} 19... g5 {[%clk
0:01:18.3]} 20. Nh5 {[%clk 0:01:21.4]} 20... Be6 {[%clk 0:01:11]} 21. Nxg7
{[%clk 0:01:01.9]} 21... Kxg7 {[%clk 0:01:11.9]} 22. Nc3 {[%clk 0:00:56.1]}
22... Rf7 {[%clk 0:00:58.5]} 23. h3 {[%clk 0:00:43.7]} 23... Nf6 {[%clk
0:00:57.5]} 24. b5 {[%clk 0:00:43.8]} 24... Nd5 {[%clk 0:00:54.6]} 25. Nxd5
{[%clk 0:00:40.6]} 25... Bxd5 {[%clk 0:00:54.9]} 26. bxc6 {[%clk 0:00:40.3]}
26... bxc6 {[%clk 0:00:55.1]} 27. Kh2 {[%clk 0:00:27.6]} 27... Rb8 {[%clk
0:00:51.6]} 28. f4 {[%clk 0:00:27.5]} 28... exf3 {[%clk 0:00:49.3]} 29. exf3
{[%clk 0:00:28.4]} 29... Rb2 {[%clk 0:00:47.6]} 30. Rg1 {[%clk 0:00:26.7]} 30...
Rfb7 {[%clk 0:00:42.1]} 31. Qd3 {[%clk 0:00:25.8]} 31... Rxa2 {[%clk 0:00:33.7]}
32. f4 {[%clk 0:00:21.7]} 32... Qe4 {[%clk 0:00:30]} 33. Qxe4 {[%clk 0:00:19.1]}
33... Bxe4 {[%clk 0:00:30.9]} 34. Kh1 {[%clk 0:00:16.3]} 34... Rbb2 {[%clk
0:00:28.3]} 35. Rd7+ {[%clk 0:00:14.9]} 35... Kf8 {[%clk 0:00:26.8]} 36. Rgd1
{[%clk 0:00:14]} 36... Bxg2+ {[%clk 0:00:24.6]} 37. Kg1 {[%clk 0:00:13.4]} 37...
Bd5 {[%clk 0:00:25.5]} 38. Rxh7 {[%clk 0:00:12.2]} 38... gxf4 {[%clk 0:00:24.6]}
39. gxf4 {[%clk 0:00:12.3]} 39... Rg2+ {[%clk 0:00:23.7]} 40. Kf1 {[%clk
0:00:12.3]} 40... Bc4+ {[%clk 0:00:22]} 0-1

[Event "*** Titled Tuesday Blitz"]
[Site "Chess.com"]
[Date "2021.02.16"]
[Round "5"]
[White "Msb2"]
[Black "ChessWarrior7197"]
[Result "1-0"]
[WhiteElo "2867"]
[BlackElo "2947"]
[TimeControl "180+1"]
[EndTime "10:57:53 PST"]
[Termination "Msb2 won by resignation"]

1. d4 {[%clk 0:03:00.9]} 1... d5 {[%clk 0:02:59.9]} 2. Nf3 {[%clk 0:03:00.8]}
2... Nf6 {[%clk 0:02:59.9]} 3. e3 {[%clk 0:03:01.4]} 3... e6 {[%clk 0:02:59.3]}
4. Bd3 {[%clk 0:03:01.5]} 4... c5 {[%clk 0:02:58]} 5. b3 {[%clk 0:03:01.4]} 5...
Bd6 {[%clk 0:02:56.3]} 6. O-O {[%clk 0:03:00.1]} 6... O-O {[%clk 0:02:56.4]} 7.
Bb2 {[%clk 0:02:59.8]} 7... Qe7 {[%clk 0:02:57]} 8. Nbd2 {[%clk 0:02:53.8]} 8...
cxd4 {[%clk 0:02:56.9]} 9. exd4 {[%clk 0:02:54]} 9... Ba3 {[%clk 0:02:57.3]} 10.
Bxa3 {[%clk 0:02:50.5]} 10... Qxa3 {[%clk 0:02:58.2]} 11. Qc1 {[%clk 0:02:46.1]}
11... Qd6 {[%clk 0:02:56.3]} 12. c3 {[%clk 0:02:36.5]} 12... Nc6 {[%clk
0:02:55.7]} 13. Re1 {[%clk 0:02:36.8]} 13... b6 {[%clk 0:02:52.3]} 14. Ne5
{[%clk 0:02:36.9]} 14... Bb7 {[%clk 0:02:52.1]} 15. Ndf3 {[%clk 0:02:35.2]}
15... Rac8 {[%clk 0:02:51.6]} 16. Qd2 {[%clk 0:02:35.3]} 16... Ne7 {[%clk
0:02:51.3]} 17. Rac1 {[%clk 0:02:13.3]} 17... Ne4 {[%clk 0:02:44.5]} 18. Qb2
{[%clk 0:02:07.6]} 18... f6 {[%clk 0:02:40.9]} 19. Ng4 {[%clk 0:02:06.9]} 19...
Ng6 {[%clk 0:02:41.1]} 20. Ne3 {[%clk 0:01:39]} 20... f5 {[%clk 0:02:37.8]} 21.
Nd2 {[%clk 0:01:31.3]} 21... Nf4 {[%clk 0:02:33.7]} 22. Bf1 {[%clk 0:01:30.3]}
22... Rf6 {[%clk 0:02:33.8]} 23. f3 {[%clk 0:01:20.4]} 23... Rh6 {[%clk
0:02:07.6]} 24. fxe4 {[%clk 0:01:02.3]} 24... dxe4 {[%clk 0:02:07.2]} 25. Ndc4
{[%clk 0:00:55]} 25... Ne2+ {[%clk 0:01:56.8]} 26. Qxe2 {[%clk 0:00:47.3]} 26...
Qxh2+ {[%clk 0:01:56.7]} 27. Kf2 {[%clk 0:00:47.8]} 27... f4 {[%clk 0:01:39.8]}
28. Qg4 {[%clk 0:00:47.5]} 28... Rg6 {[%clk 0:01:37.6]} 29. Qh3 {[%clk
0:00:46.8]} 29... fxe3+ {[%clk 0:01:38.2]} 30. Ke2 {[%clk 0:00:44.9]} 30... Qf4
{[%clk 0:01:28.9]} 31. Qxe3 {[%clk 0:00:43]} 31... Qh4 {[%clk 0:01:27.7]} 32.
Qh3 {[%clk 0:00:40.6]} 32... Qg5 {[%clk 0:01:24.8]} 33. Qe3 {[%clk 0:00:34.3]}
33... Qh4 {[%clk 0:01:19.5]} 34. Qh3 {[%clk 0:00:29.8]} 34... Qg5 {[%clk
0:01:14.4]} 35. Kd1 {[%clk 0:00:30.3]} 35... Rf8 {[%clk 0:01:12]} 36. Ne5 {[%clk
0:00:30.1]} 36... Rgf6 {[%clk 0:01:06.5]} 37. Bc4 {[%clk 0:00:29.8]} 37... Bd5
{[%clk 0:01:04.2]} 38. Rc2 {[%clk 0:00:28.5]} 38... Rf2 {[%clk 0:01:01.4]} 39.
Bxd5 {[%clk 0:00:27]} 39... Rxc2 {[%clk 0:00:15.3]} 40. Qxe6+ {[%clk 0:00:26.5]}
40... Rf7 {[%clk 0:00:13.8]} 41. Qxf7+ {[%clk 0:00:26.2]} 1-0

[Event "*** Titled Tuesday Blitz"]
[Site "Chess.com"]
[Date "2021.02.16"]
[Round "5"]
[White "Nikolakis2014"]
[Black "Chesseyat004"]
[Result "1-0"]
[WhiteElo "2643"]
[BlackElo "2475"]
[TimeControl "180+1"]
[EndTime "10:57:54 PST"]
[Termination "Nikolakis2014 won by resignation"]

1. Nf3 {[%clk 0:03:00.9]} 1... Nf6 {[%clk 0:02:59.7]} 2. c4 {[%clk 0:03:00.6]}
2... e6 {[%clk 0:02:57.2]} 3. g3 {[%clk 0:03:00.2]} 3... d5 {[%clk 0:02:56.5]}
4. d4 {[%clk 0:02:59]} 4... Bb4+ {[%clk 0:02:55.5]} 5. Nc3 {[%clk 0:02:57.9]}
5... O-O {[%clk 0:02:52.2]} 6. Bg2 {[%clk 0:02:58]} 6... dxc4 {[%clk 0:02:47.3]}
7. a3 {[%clk 0:02:57.3]} 7... Be7 {[%clk 0:02:45.4]} 8. Ne5 {[%clk 0:02:56.6]}
8... Nd5 {[%clk 0:02:32.1]} 9. Nxc4 {[%clk 0:02:54.5]} 9... Nxc3 {[%clk
0:02:32.2]} 10. bxc3 {[%clk 0:02:54.2]} 10... c5 {[%clk 0:02:32.6]} 11. O-O
{[%clk 0:02:54]} 11... Nc6 {[%clk 0:02:32.5]} 12. e3 {[%clk 0:02:51.3]} 12...
Qc7 {[%clk 0:02:29.7]} 13. Bb2 {[%clk 0:02:46.3]} 13... b6 {[%clk 0:02:29.7]}
14. Re1 {[%clk 0:02:32]} 14... Bb7 {[%clk 0:02:25.8]} 15. Rc1 {[%clk 0:02:23.8]}
15... Rfd8 {[%clk 0:02:21.4]} 16. Qg4 {[%clk 0:02:18.4]} 16... Na5 {[%clk
0:01:46.8]} 17. Nxa5 {[%clk 0:02:08.4]} 17... Bxg2 {[%clk 0:01:46.4]} 18. Kxg2
{[%clk 0:02:08.8]} 18... bxa5 {[%clk 0:01:46.8]} 19. c4 {[%clk 0:02:09.2]} 19...
Rab8 {[%clk 0:01:42.4]} 20. Ba1 {[%clk 0:02:02.8]} 20... Bf6 {[%clk 0:01:28.1]}
21. Red1 {[%clk 0:01:52.3]} 21... Rb3 {[%clk 0:01:09.8]} 22. d5 {[%clk
0:01:48.4]} 22... Bxa1 {[%clk 0:01:09.5]} 23. Rxa1 {[%clk 0:01:48.4]} 23... exd5
{[%clk 0:01:08]} 24. Rxd5 {[%clk 0:01:41.6]} 24... Rxd5 {[%clk 0:00:48.7]} 25.
cxd5 {[%clk 0:01:41.4]} 25... c4 {[%clk 0:00:46.2]} 26. Rc1 {[%clk 0:01:20.2]}
26... c3 {[%clk 0:00:31.3]} 27. Qa4 {[%clk 0:01:00.8]} 27... Qb8 {[%clk
0:00:29]} 28. Qxa5 {[%clk 0:00:55.5]} 28... Qc8 {[%clk 0:00:11.4]} 29. Qa4
{[%clk 0:00:45.4]} 29... Rb6 {[%clk 0:00:09.4]} 30. Qc2 {[%clk 0:00:41.5]} 30...
Qc4 {[%clk 0:00:08.4]} 31. e4 {[%clk 0:00:25.9]} 31... Rb3 {[%clk 0:00:07.8]}
32. d6 {[%clk 0:00:25.5]} 32... Rb2 {[%clk 0:00:03.4]} 33. Qxc3 {[%clk
0:00:21.5]} 33... Qxe4+ {[%clk 0:00:02.9]} 34. Qf3 {[%clk 0:00:21.7]} 34...
Rxf2+ {[%clk 0:00:01.5]} 1-0

[Event "*** Titled Tuesday Blitz"]
[Site "Chess.com"]
[Date "2021.02.16"]
[Round "5"]
[White "ybruned"]
[Black "anskam"]
[Result "1-0"]
[WhiteElo "2311"]
[BlackElo "1718"]
[TimeControl "180+1"]
[EndTime "10:57:56 PST"]
[Termination "ybruned won by resignation"]

1. b3 {[%clk 0:03:00.1]} 1... Nf6 {[%clk 0:02:58.4]} 2. Bb2 {[%clk 0:03:00.5]}
2... e6 {[%clk 0:02:57.2]} 3. e3 {[%clk 0:02:59.8]} 3... Be7 {[%clk 0:02:56.4]}
4. Nf3 {[%clk 0:03:00.4]} 4... O-O {[%clk 0:02:55.4]} 5. Be2 {[%clk 0:03:01.3]}
5... c6 {[%clk 0:02:54.5]} 6. O-O {[%clk 0:03:01.4]} 6... d5 {[%clk 0:02:53.9]}
7. d4 {[%clk 0:03:02]} 7... Nbd7 {[%clk 0:02:52.3]} 8. c4 {[%clk 0:03:02.4]}
8... Qc7 {[%clk 0:02:49.7]} 9. Ba3 {[%clk 0:02:59.4]} 9... Bxa3 {[%clk
0:02:46.6]} 10. Nxa3 {[%clk 0:02:58.4]} 10... Ne4 {[%clk 0:02:46]} 11. Nb1
{[%clk 0:02:53.6]} 11... f5 {[%clk 0:02:45.2]} 12. Qc2 {[%clk 0:02:52.1]} 12...
Qd8 {[%clk 0:02:40.9]} 13. Nbd2 {[%clk 0:02:49.1]} 13... h6 {[%clk 0:02:39.6]}
14. Rad1 {[%clk 0:02:32.5]} 14... g5 {[%clk 0:02:38.7]} 15. Ne5 {[%clk
0:02:30.2]} 15... Nxe5 {[%clk 0:02:37.6]} 16. dxe5 {[%clk 0:02:29.8]} 16... Qc7
{[%clk 0:02:30]} 17. Nxe4 {[%clk 0:02:21.4]} 17... fxe4 {[%clk 0:02:28.1]} 18.
cxd5 {[%clk 0:02:12.9]} 18... exd5 {[%clk 0:02:18.8]} 19. Rxd5 {[%clk 0:02:05]}
19... Be6 {[%clk 0:02:17.8]} 20. Rd6 {[%clk 0:02:01]} 20... Bf5 {[%clk
0:02:08.5]} 21. Bc4+ {[%clk 0:01:46.6]} 21... Kg7 {[%clk 0:02:07.6]} 22. Be6
{[%clk 0:01:36.5]} 22... Bxe6 {[%clk 0:02:01]} 23. Rxe6 {[%clk 0:01:35.2]} 23...
Rae8 {[%clk 0:01:59.6]} 24. Rxe8 {[%clk 0:01:16.4]} 24... Rxe8 {[%clk
0:01:59.1]} 25. Qxe4 {[%clk 0:01:17]} 25... Qxe5 {[%clk 0:01:57.9]} 26. Qxe5+
{[%clk 0:01:17]} 26... Rxe5 {[%clk 0:01:57.3]} 27. Rd1 {[%clk 0:01:17.9]} 27...
Kf7 {[%clk 0:01:40.7]} 28. Kf1 {[%clk 0:01:16.2]} 28... Ke6 {[%clk 0:01:39.2]}
29. Ke2 {[%clk 0:01:15.6]} 29... Ra5 {[%clk 0:01:36.3]} 30. Rd2 {[%clk
0:01:14.8]} 30... b5 {[%clk 0:01:33.2]} 31. e4 {[%clk 0:01:13.6]} 31... c5
{[%clk 0:01:31.8]} 32. Rc2 {[%clk 0:01:10.7]} 32... b4 {[%clk 0:01:29.2]} 33.
Ke3 {[%clk 0:01:07.3]} 33... Ke5 {[%clk 0:01:22.8]} 34. f3 {[%clk 0:01:06.9]}
34... h5 {[%clk 0:01:21.1]} 35. g3 {[%clk 0:01:06.8]} 35... a6 {[%clk
0:01:12.4]} 36. f4+ {[%clk 0:01:06.9]} 36... gxf4+ {[%clk 0:01:10.4]} 37. gxf4+
{[%clk 0:01:07.8]} 37... Ke6 {[%clk 0:01:10.1]} 38. Rg2 {[%clk 0:01:06]} 38...
Kf6 {[%clk 0:01:07.1]} 39. Kd3 {[%clk 0:01:05.6]} 39... Rb5 {[%clk 0:01:04.5]}
40. Kc4 {[%clk 0:01:05.4]} 40... Ra5 {[%clk 0:00:59.8]} 41. Re2 {[%clk
0:01:03.4]} 41... Ke6 {[%clk 0:00:58.8]} 42. e5 {[%clk 0:00:58.1]} 42... Rb5
{[%clk 0:00:56]} 43. f5+ {[%clk 0:00:51]} 43... Kxf5 {[%clk 0:00:54.3]} 44. e6
{[%clk 0:00:51.5]} 44... Rb8 {[%clk 0:00:50.8]} 45. e7 {[%clk 0:00:51.9]} 45...
Re8 {[%clk 0:00:47.5]} 46. Kxc5 {[%clk 0:00:51.8]} 46... h4 {[%clk 0:00:43.4]}
47. Kd6 {[%clk 0:00:51.3]} 47... Kg4 {[%clk 0:00:32.4]} 48. Kd7 {[%clk
0:00:50.6]} 48... Rxe7+ {[%clk 0:00:31.4]} 49. Kxe7 {[%clk 0:00:50.3]} 49... Kf3
{[%clk 0:00:30.7]} 50. Rc2 {[%clk 0:00:50.2]} 50... h3 {[%clk 0:00:29.6]} 51.
Kd6 {[%clk 0:00:49.1]} 51... a5 {[%clk 0:00:29.2]} 52. Kc5 {[%clk 0:00:49.1]}
1-0

[Event "*** Titled Tuesday Blitz"]
[Site "Chess.com"]
[Date "2021.02.16"]
[Round "5"]
[White "swisspower96"]
[Black "TimofeevAr"]
[Result "0-1"]
[WhiteElo "2632"]
[BlackElo "2880"]
[TimeControl "180+1"]
[EndTime "10:57:57 PST"]
[Termination "TimofeevAr won by resignation"]

1. d4 {[%clk 0:03:00.9]} 1... Nf6 {[%clk 0:02:59]} 2. c4 {[%clk 0:02:59.6]} 2...
b6 {[%clk 0:02:59.1]} 3. f3 {[%clk 0:02:45.2]} 3... e6 {[%clk 0:02:47.9]} 4. e4
{[%clk 0:02:39.1]} 4... d5 {[%clk 0:02:48]} 5. cxd5 {[%clk 0:02:38.2]} 5... exd5
{[%clk 0:02:47.6]} 6. e5 {[%clk 0:02:38.8]} 6... Nfd7 {[%clk 0:02:47.9]} 7. f4
{[%clk 0:02:39.4]} 7... Be7 {[%clk 0:02:46.7]} 8. Nf3 {[%clk 0:02:39.3]} 8...
O-O {[%clk 0:02:45.5]} 9. Nc3 {[%clk 0:02:37]} 9... Bb7 {[%clk 0:02:44.4]} 10.
Bd3 {[%clk 0:02:35.2]} 10... c5 {[%clk 0:02:44.5]} 11. O-O {[%clk 0:02:34.5]}
11... cxd4 {[%clk 0:02:43.2]} 12. Nb5 {[%clk 0:02:20.6]} 12... Nc5 {[%clk
0:02:36.9]} 13. Kh1 {[%clk 0:01:59]} 13... Nc6 {[%clk 0:02:24]} 14. Nbxd4 {[%clk
0:01:57.3]} 14... Ne4 {[%clk 0:02:19.8]} 15. f5 {[%clk 0:01:46.6]} 15... Nxd4
{[%clk 0:02:10.6]} 16. Nxd4 {[%clk 0:01:45.9]} 16... Bc5 {[%clk 0:02:11.3]} 17.
Be3 {[%clk 0:01:21.8]} 17... Qh4 {[%clk 0:02:10.5]} 18. Qe1 {[%clk 0:00:56.3]}
18... Qxe1 {[%clk 0:02:07.7]} 19. Raxe1 {[%clk 0:00:57.2]} 19... Rfe8 {[%clk
0:02:06]} 20. e6 {[%clk 0:00:57.4]} 20... Bxd4 {[%clk 0:01:31.6]} 21. exf7+
{[%clk 0:00:56.9]} 21... Kxf7 {[%clk 0:01:31.4]} 22. Bxd4 {[%clk 0:00:57.6]}
22... Nc5 {[%clk 0:01:31.8]} 23. Be2 {[%clk 0:00:42.7]} 23... Rxe2 {[%clk
0:01:23.8]} 24. Rxe2 {[%clk 0:00:42.6]} 24... Ba6 {[%clk 0:01:24.4]} 25. Rfe1
{[%clk 0:00:41.8]} 25... Bxe2 {[%clk 0:01:24.3]} 26. Rxe2 {[%clk 0:00:42.7]}
26... Rc8 {[%clk 0:01:23.7]} 27. g4 {[%clk 0:00:41.1]} 27... Ne4 {[%clk
0:01:22.4]} 28. Kg2 {[%clk 0:00:38.6]} 28... Rc4 {[%clk 0:01:21.7]} 29. Be5
{[%clk 0:00:35.2]} 29... g6 {[%clk 0:01:14.8]} 30. fxg6+ {[%clk 0:00:32.5]}
30... Kxg6 {[%clk 0:01:12.7]} 31. Re3 {[%clk 0:00:27.3]} 31... Rc2+ {[%clk
0:00:52.6]} 32. Kf1 {[%clk 0:00:27.4]} 32... Nd2+ {[%clk 0:00:49.7]} 33. Kg1
{[%clk 0:00:14.4]} 33... Nc4 {[%clk 0:00:49.4]} 34. Re1 {[%clk 0:00:14.7]} 34...
Nxe5 {[%clk 0:00:44.9]} 35. Rxe5 {[%clk 0:00:15.6]} 35... Rxb2 {[%clk
0:00:45.4]} 36. Rxd5 {[%clk 0:00:14.6]} 36... Rxa2 {[%clk 0:00:45.8]} 37. h4
{[%clk 0:00:15.3]} 37... Ra4 {[%clk 0:00:41.9]} 38. Rd6+ {[%clk 0:00:15.3]}
38... Kf7 {[%clk 0:00:41.1]} 39. Rd7+ {[%clk 0:00:15.5]} 39... Ke6 {[%clk
0:00:40.5]} 40. Rg7 {[%clk 0:00:14.1]} 40... Kf6 {[%clk 0:00:40]} 41. Rg8 {[%clk
0:00:11.2]} 41... Kf7 {[%clk 0:00:37.7]} 42. Rg5 {[%clk 0:00:10.6]} 42... h6
{[%clk 0:00:32.8]} 43. Rf5+ {[%clk 0:00:10.5]} 43... Ke6 {[%clk 0:00:33.1]} 44.
Rh5 {[%clk 0:00:09.8]} 44... Rxg4+ {[%clk 0:00:32.4]} 45. Kf2 {[%clk 0:00:10.5]}
45... Rg6 {[%clk 0:00:32.4]} 0-1